bitfinex-derivatives/quotes_SOLF0:USTF0_20260203
["timestamp","ask_amount","ask_price","bid_price","bid_amount"]
[1770111462163,18.79746648,103.15,103.09,371.3]
[1770111462363,27.53016648,103.15,103.09,371.3]
[1770111462758,18.79748482,103.17,103.1,2.40518381]
[1770111462962,27.52838482,103.17,103.1,2.40518381]
[1770111463666,8.7319,103.16,103.1,2.40518381]
[1770111463866,18.79748482,103.17,103.1,2.40518381]
[1770111464971,18.78665955,103.15,103.09,371.3]
[1770111466366,8.7334,103.14,103.09,371.3]
[1770111466567,18.78665955,103.15,103.09,371.3]
[1770111466870,21.19186437,103.14,103.09,371.3]
[1770111467170,8.735,103.13,103.09,371.3]
[1770111467368,21.19186437,103.14,103.09,371.3]
[1770111467571,18.78858359,103.13,103.07,2.40518381]
[1770111467766,8.736,103.11,103.07,2.40518381]
[1770111468171,8.736,103.11,103.06,374.86]
[1770111468465,8.736,103.11,103.05,377.68518381]
[1770111469370,8.7351,103.12,103.05,377.68518381]
[1770111470672,27.52288359,103.13,103.05,377.68518381]
[1770111470976,27.52288359,103.13,103.07,2.40518381]
[1770111472072,15.40288149,103.13,103.07,2.40518381]
[1770111472576,8.7351,103.12,103.07,2.40518381]
[1770111473877,8.7351,103.12,103.05,377.68518381]
[1770111474377,21.52590166,103.12,103.05,377.68518381]
[1770111478275,12.77314648,103.1,103.04,30.3254227]
[1770111478474,15.17833029,103.1,103.02,2.40518381]
[1770111479379,23.91593029,103.1,103.02,11.14838381]
[1770111480882,21.51074648,103.1,103.04,2.40518381]
[1770111481082,12.80535077,103.13,103.08,2.40518381]
[1770111481483,21.53805077,103.15,103.08,2.40518381]
[1770111481880,12.80535077,103.15,103.08,2.40518381]
[1770111483090,8.7335,103.14,103.08,2.40518381]
[1770111484386,8.7335,103.14,103.06,92.3801]
[1770111484792,21.53805077,103.15,103.06,92.3801]
[1770111484988,12.71523771,103.17,103.07,35.6574776]
[1770111485194,12.71523771,103.17,103.09,6.4474776]
[1770111485886,12.71523771,103.17,103.08,8.7384]
[1770111486083,12.71523771,103.17,103.07,36.7729003]
[1770111486293,12.71523771,103.17,103.07,6.4474776]
[1770111486996,12.71525699,103.15,103.05,253.1529003]
[1770111487195,12.71525699,103.15,103.05,222.8274776]
[1770111487496,12.71525699,103.15,103.05,253.1529003]
[1770111487687,21.44855699,103.15,103.05,231.5684776]
[1770111487892,12.66625893,103.14,103.05,231.5684776]
[1770111488592,12.66625893,103.14,103.07,30.3254227]
[1770111489292,21.39965893,103.14,103.07,30.3254227]
[1770111489496,12.6892557,103.13,103.06,30.3254227]
[1770111490293,21.4237557,103.13,103.06,30.3254227]
[1770111490489,12.6892557,103.13,103.06,40.0424227]
[1770111490691,12.6892557,103.13,103.06,30.3254227]
[1770111490996,12.6892557,103.13,103.06,40.0424227]
[1770111492392,12.69140449,103.15,103.06,40.0424227]
[1770111492594,12.69140449,103.15,103.07,40.0424227]
[1770111492799,12.69140449,103.13,103.07,30.3254227]
[1770111493098,12.69140449,103.13,103.06,30.3254227]
[1770111493298,12.69140449,103.13,103.07,30.3254227]
[1770111493500,12.69140449,103.13,103.06,30.3254227]
[1770111494001,21.42570449,103.13,103.06,40.0424227]
[1770111494401,12.69140449,103.13,103.06,40.0424227]
[1770111494799,12.69140449,103.13,103.06,30.3254227]
[1770111495101,12.69140449,103.13,103.05,225.1208]
[1770111496601,12.69140449,103.13,103.05,255.4462227]
[1770111499802,21.42580449,103.13,103.06,9.717]
[1770111501008,12.69140449,103.13,103.06,9.717]
[1770111501200,12.69140449,103.13,103.06,40.0424227]
[1770111501605,21.42590449,103.13,103.06,40.0424227]
[1770111501903,21.42590449,103.13,103.06,9.717]
[1770111503100,9.305074,103.13,103.06,9.717]
[1770111503304,0.570574,103.13,103.06,40.0424227]
[1770111504010,9.304874,103.13,103.06,40.0424227]
[1770111504205,0.570574,103.13,103.06,40.0424227]
[1770111504401,0.570574,103.13,103.07,2.40762123]
[1770111506111,9.304874,103.13,103.07,2.40762123]
[1770111507210,0.570574,103.13,103.07,2.40762123]
[1770111508517,0.570574,103.13,103.07,2.40755052]
[1770111509310,6.6667271,103.13,103.06,2.40755052]
[1770111509507,6.6667271,103.13,103.06,32.73297322]
[1770111509812,6.6667271,103.12,103.06,2.40755052]
[1770111510012,6.6667271,103.12,103.06,32.73297322]
[1770111510310,6.6667271,103.12,103.06,2.40755052]
[1770111510711,6.6667271,103.12,103.06,32.73297322]
[1770111510912,6.6667271,103.12,103.06,2.40755052]
[1770111512013,15.4023271,103.12,103.06,2.40755052]
[1770111513516,6.67843969,103.1,103.05,30.3254227]
[1770111513712,8.7361,103.11,103.04,1.0373475]
[1770111513713,2.40755052,103.11,103.04,1.0373475]
[1770111513917,2.40755052,103.11,103.04,31.3627702]
[1770111514317,8.7351,103.12,103.06,1.03593091]
[1770111515719,12.47938764,103.12,103.06,1.03593091]
[1770111516219,3.74428764,103.12,103.07,3.49137751]
[1770111517514,3.74428764,103.14,103.08,1.21548288]
[1770111519609,3.74428764,103.14,103.09,2.40755052]
[1770111520417,3.74428764,103.12,103.06,41.29779882]
[1770111520620,3.74428764,103.12,103.05,408.21]
[1770111520621,3.74428764,103.14,103.08,3.66292664]
[1770111520817,3.74428764,103.14,103.09,1.25537612]
[1770111521812,3.74428764,103.14,103.08,2.40755052]
[1770111522018,3.74428764,103.13,103.08,2.40755052]
[1770111523621,17.4606,103.18,103.08,2.40755052]
[1770111523925,2.40755052,103.15,103.08,2.40755052]
[1770111524620,11.14015052,103.15,103.08,2.40755052]
[1770111525721,3.74428764,103.14,103.08,2.40755052]
[1770111526118,8.7334,103.14,103.08,2.40755052]
[1770111526421,8.7334,103.14,103.07,1.26997464]
[1770111526422,6.15183816,103.13,103.07,1.26997464]
[1770111526622,3.74428764,103.12,103.07,1.26997464]
[1770111528921,3.74428764,103.12,103.06,11.14745052]
[1770111529326,3.74428764,103.12,103.06,14.96383512]
[1770111529532,3.74428764,103.12,103.05,391.5571846]
[1770111530330,12.47938764,103.12,103.05,382.8163846]
[1770111530531,3.59946312,103.11,103.05,382.8163846]
[1770111530928,3.59946312,103.11,103.05,391.5572846]
[1770111531425,3.59946312,103.11,103.06,3.77624394]
[1770111532735,5.91015014,103.13,103.07,3.64372004]
[1770111534429,3.50259962,103.12,103.07,3.64372004]
[1770111535336,3.50259962,103.12,103.07,33.96914274]
[1770111536337,3.50259962,103.12,103.07,3.64372004]
[1770111538238,12.23769962,103.12,103.07,3.64372004]
[1770111539641,3.50259962,103.11,103.07,3.64372004]
[1770111540844,3.50259962,103.11,103.05,387.7408]
[1770111540845,3.50259962,103.1,103.05,30.3254227]
[1770111541040,3.50259962,103.1,103.0,29.21]
[1770111541041,3.50259962,103.08,103.04,28.07341414]
[1770111541239,3.50259962,103.08,103.02,3.64372004]
[1770111541740,3.50259962,103.08,103.03,3.64372004]
[1770111541938,5.91015014,103.12,103.06,3.64372004]
[1770111542137,3.50259962,103.11,103.06,3.64372004]
[1770111543346,12.23749962,103.13,103.06,12.38362004]
[1770111543548,12.23749962,103.13,103.07,3.64372004]
[1770111545043,3.50259962,103.16,103.1,3.64372004]
[1770111551256,3.50259962,103.15,103.1,3.64372004]
[1770111554555,3.50259962,103.15,103.09,3.64372004]
[1770111555153,3.50259962,103.17,103.1,6.05127056]
[1770111556360,3.50259962,103.17,103.11,3.64372004]
[1770111557959,3.50259962,103.17,103.12,6.05127056]
[1770111558157,12.23189962,103.19,103.13,3.64372004]
[1770111558357,3.50259962,103.19,103.13,3.64372004]
[1770111558661,3.50259962,103.19,103.14,6.05127056]
[1770111559361,3.50259962,103.19,103.14,3.64372004]
[1770111559563,3.50259962,103.18,103.12,6.05127056]
[1770111560359,3.50259962,103.18,103.12,3.64372004]
[1770111561361,3.48629058,103.17,103.12,3.64372004]
[1770111562259,3.48629058,103.15,103.09,3.58302121]
[1770111564463,12.21979058,103.14,103.09,3.58302121]
[1770111566066,12.22059058,103.13,103.07,5.99057173]
[1770111567660,3.48629058,103.13,103.07,5.99057173]
[1770111568166,3.48629058,103.13,103.08,3.58302121]
[1770111568863,3.48629058,103.12,103.07,5.99032599]
[1770111569268,8.7345,103.13,103.08,3.58302121]
[1770111569564,12.22079058,103.13,103.08,3.58302121]
[1770111570968,3.48629058,103.13,103.08,3.58302121]
[1770111575268,3.48629058,103.13,103.08,33.73903004]
[1770111579166,3.48629058,103.15,103.1,3.58302121]
[1770111579371,5.89359536,103.17,103.1,3.58302121]
[1770111579565,3.48629058,103.17,103.11,5.99032599]
[1770111580365,3.48629058,103.15,103.11,3.58302121]
[1770111580569,3.48629058,103.15,103.1,30.15600883]
[1770111580970,5.89359536,103.15,103.09,5.99032599]
[1770111581170,5.89359536,103.15,103.09,36.14633482]
[1770111581372,12.21979058,103.14,103.09,3.58302121]
[1770111587976,3.48629058,103.14,103.09,5.99032599]
[1770111594676,3.50317234,103.13,103.09,5.99032599]
[1770111597176,3.50317234,103.12,103.07,33.8619446]
[1770111597374,3.50317234,103.12,103.07,3.70593577]
[1770111598873,3.50317234,103.11,103.06,3.70593577]
[1770111600168,3.50317234,103.08,103.04,30.15600883]
[1770111600368,5.91047712,103.11,103.04,3.70593577]
[1770111600572,3.50317234,103.1,103.04,3.70593577]
[1770111603178,12.24017234,103.1,103.04,3.70593577]
[1770111603770,3.50317234,103.08,103.02,3.70593577]
[1770111604272,3.50317234,103.07,103.02,3.70593577]
[1770111604470,2.40730478,103.09,103.01,378.52730478]
[1770111604471,3.50317234,103.09,103.03,6.11324055]
[1770111604669,3.50317234,103.09,103.04,3.70593577]
[1770111606974,14.64657712,103.11,103.04,3.70593577]
[1770111607278,3.50317234,103.1,103.04,3.70593577]
[1770111608370,12.24007234,103.1,103.04,3.70593577]
[1770111611078,3.50317234,103.09,103.04,3.70593577]
[1770111611280,12.24087234,103.09,103.04,3.70593577]
[1770111611479,3.50317234,103.09,103.04,3.70593577]
[1770111613984,3.50317234,103.09,103.05,3.70593577]
[1770111614685,3.50317234,103.11,103.05,3.70593577]
[1770111615284,3.50317234,103.1,103.03,8.7427]
[1770111615486,3.50317234,103.1,103.04,3.70593577]
[1770111615684,3.50317234,103.1,103.04,6.11324055]
[1770111616787,3.50317234,103.1,103.04,3.70593577]
[1770111628496,3.50317234,103.1,103.05,3.47991112]
[1770111629500,12.23997234,103.1,103.05,3.47991112]
[1770111631401,3.8126987,103.09,103.04,3.47991112]
[1770111636999,3.8126987,103.11,103.06,3.47991112]
[1770111641803,3.8126987,103.11,103.06,12.21981112]
[1770111643003,3.8126987,103.11,103.05,11.15007176]
[1770111643307,3.8126987,103.11,103.05,12.22091112]
[1770111645410,3.8126987,103.11,103.06,8.7401]
[1770111647104,3.8126987,103.11,103.07,8.7391]
[1770111648008,3.8126987,103.11,103.06,8.7399]
[1770111651413,3.8126987,103.11,103.06,12.52815556]
[1770111651921,3.8126987,103.11,103.07,12.16821147]
[1770111654321,3.8126987,103.11,103.07,8.7389]
[1770111658628,5.96604809,103.12,103.08,8.7383]
[1770111659726,5.96604809,103.12,103.09,8.7373]
[1770111660326,3.55697633,103.12,103.09,8.7373]
[1770111664632,5.96604809,103.12,103.08,12.16751147]
[1770111664832,3.55697633,103.11,103.08,8.7382]
[1770111667835,3.55697633,103.11,103.07,8.7393]
[1770111669535,5.96604809,103.1,103.07,8.7393]
[1770111670730,3.55697633,103.1,103.07,8.7393]
[1770111672640,5.96604809,103.11,103.07,8.7393]
[1770111677442,8.7351,103.12,103.08,12.16771147]
[1770111677443,2.40907176,103.12,103.08,12.16771147]
[1770111678142,14.70044809,103.13,103.08,12.16771147]
[1770111679947,3.55697633,103.12,103.08,12.16771147]
[1770111680751,3.55697633,103.12,103.08,8.7384]
[1770111680945,5.96604809,103.12,103.08,8.7384]
[1770111682654,3.55697633,103.12,103.08,8.7384]
[1770111685054,12.29207633,103.12,103.08,8.7384]
[1770111686860,3.65879059,103.14,103.1,3.51008453]
[1770111688156,3.65879059,103.18,103.13,5.91915629]
[1770111688355,3.65879059,103.21,103.15,2.40907176]
[1770111688556,3.65879059,103.21,103.17,11.13967176]
[1770111689247,3.65879059,103.21,103.16,12.24178453]
[1770111689756,3.65879059,103.2,103.14,5.91915629]
[1770111689956,6.06786235,103.2,103.15,12.24208453]
[1770111690156,3.65879059,103.22,103.15,3.51008453]
[1770111690352,6.06325445,103.22,103.15,3.51008453]
[1770111690861,3.65879059,103.21,103.15,3.51008453]
[1770111691355,3.65879059,103.21,103.16,8.7317]
[1770111691551,3.65879059,103.21,103.15,3.51008453]
[1770111691955,3.65879059,103.21,103.16,8.7316]
[1770111692256,3.65879059,103.21,103.16,12.24168453]
[1770111694161,12.38459059,103.23,103.17,12.24068453]
[1770111694357,3.65879059,103.23,103.18,3.51008453]
[1770111694564,2.40446386,103.24,103.18,3.51008453]
[1770111694861,3.65879059,103.25,103.19,3.51008453]
[1770111695354,291.06,103.28,103.19,12.23908453]
[1770111695355,6.06325445,103.24,103.19,12.23908453]
[1770111698764,14.78675445,103.26,103.2,12.23818453]
[1770111698959,6.06325445,103.26,103.21,3.51008453]
[1770111700260,6.06325445,103.26,103.21,12.23728453]
[1770111700665,450.0662,103.29,103.21,12.23728453]
[1770111700666,3.65879059,103.29,103.23,3.51008453]
[1770111700958,6.06325445,103.28,103.23,3.51008453]
[1770111701165,3.65879059,103.27,103.21,14.64114839]
[1770111702266,3.65879059,103.25,103.19,5.91454839]
[1770111702468,3.65879059,103.25,103.19,3.51008453]
[1770111702763,6.06325445,103.24,103.19,3.51008453]
[1770111703266,6.06325445,103.23,103.17,3.51008453]
[1770111704465,6.06325445,103.23,103.17,12.24068453]
[1770111706565,6.06325445,103.23,103.18,3.51008453]
[1770111709260,3.65879059,103.22,103.16,3.51008453]
[1770111710370,12.38569059,103.22,103.17,3.65979774]
[1770111710767,6.15091589,103.21,103.15,3.65979774]
[1770111712472,6.15091589,103.21,103.16,3.45303053]
[1770111713473,6.15091589,103.21,103.16,12.18463053]
[1770111713774,3.74645203,103.21,103.17,3.45303053]
[1770111714463,3.69620307,103.22,103.17,3.45303053]
[1770111717772,6.10066693,103.21,103.15,3.45303053]
[1770111719264,6.10066693,103.21,103.16,8.7315]
[1770111719564,6.10066693,103.21,103.16,12.18453053]
[1770111720067,3.69620307,103.2,103.16,12.18453053]
[1770111720369,135.711,103.25,103.15,3.45303053]
[1770111720370,3.69620307,103.23,103.15,3.45303053]
[1770111720575,6.10066693,103.22,103.15,3.45303053]
[1770111720873,3.69620307,103.21,103.15,3.45303053]
[1770111721374,3.69620307,103.21,103.17,8.7305]
[1770111721870,3.69620307,103.21,103.16,3.45303053]
[1770111722070,2.40446386,103.2,103.15,3.45303053]
[1770111722974,6.10066693,103.2,103.16,8.7316]
[1770111723272,3.69620307,103.19,103.13,3.45303053]
[1770111723574,6.10066693,103.18,103.13,3.45303053]
[1770111724369,14.83146693,103.18,103.13,3.45303053]
[1770111725674,3.69620307,103.15,103.11,8.7359]
[1770111725975,2.40446386,103.16,103.11,12.18893053]
[1770111726177,6.10066693,103.16,103.11,12.18893053]
[1770111726567,6.10066693,103.18,103.12,12.18793053]
[1770111727179,2.40446386,103.18,103.12,12.18793053]
[1770111727379,3.69620307,103.17,103.12,12.18793053]
[1770111729275,2.40446386,103.18,103.13,12.18713053]
[1770111729481,6.10066693,103.18,103.13,12.18713053]
[1770111729685,6.10066693,103.2,103.15,8.7324]
[1770111731180,6.10066693,103.2,103.16,8.7315]
[1770111731376,8.7266,103.22,103.16,8.7315]
[1770111731377,11.13106386,103.22,103.16,12.18453053]
[1770111731577,12.42280307,103.22,103.17,3.45303053]
[1770111731780,3.69620307,103.23,103.17,3.45303053]
[1770111732386,2.40446386,103.24,103.18,3.45303053]
[1770111732585,6.10066693,103.24,103.18,5.85749439]
[1770111732784,6.10066693,103.24,103.19,3.45303053]
[1770111733084,14.82396693,103.26,103.2,8.7282]
[1770111733275,3.69620307,103.25,103.2,8.7282]
[1770111733480,2.40446386,103.26,103.2,3.45303053]
[1770111733677,6.10066693,103.26,103.2,3.45303053]
[1770111733879,6.10066693,103.26,103.21,8.7274]
[1770111734685,135.6521,103.3,103.2,2.40446386]
[1770111734890,3.69620307,103.31,103.25,138.10936386]
[1770111735189,3.69620307,103.31,103.25,141.56379439]
[1770111735387,3.69620307,103.31,103.26,3.45303053]
[1770111735685,3.69620307,103.31,103.25,2.40446386]
[1770111735988,6.10066693,103.31,103.25,3.45303053]
[1770111736181,3.69620307,103.31,103.25,3.45303053]
[1770111738193,144.2796,103.36,103.26,3.45303053]
[1770111738487,3.69620307,103.33,103.26,3.45303053]
[1770111738691,2.40446386,103.3,103.24,3.45303053]
[1770111739087,6.10066693,103.3,103.24,3.45303053]
[1770111741688,3.69620307,103.3,103.24,12.17753053]
[1770111742789,3.69620307,103.3,103.24,3.45303053]
[1770111743093,3.45885749,103.32,103.24,3.45303053]
[1770111743285,5.86332135,103.32,103.25,3.56780457]
[1770111743688,3.45885749,103.31,103.25,3.56780457]
[1770111743888,5.86332135,103.3,103.24,8.7246]
[1770111745798,5.86332135,103.32,103.26,3.56780457]
[1770111746496,3.45885749,103.34,103.27,3.56780457]
[1770111746692,5.86332135,103.34,103.27,3.56780457]
[1770111746891,5.86332135,103.34,103.27,12.29000457]
[1770111747097,3.45885749,103.34,103.28,5.97226843]
[1770111747497,3.45885749,103.34,103.29,3.56780457]
[1770111747698,3.45885749,103.34,103.27,139.24620457]
[1770111747898,3.45885749,103.34,103.29,8.7206]
[1770111750300,5.86332135,103.34,103.27,5.97226843]
[1770111750597,5.86332135,103.32,103.26,3.56780457]
[1770111750797,3.45885749,103.31,103.26,3.56780457]
[1770111752096,3.45885749,103.29,103.23,2.40446386]
[1770111752304,5.86332135,103.28,103.22,3.56780457]
[1770111752504,5.86085494,103.27,103.2,3.56780457]
[1770111752705,5.86085494,103.27,103.2,12.29590457]
[1770111754500,3.45885749,103.27,103.2,12.29590457]
[1770111756403,12.18135749,103.27,103.2,3.56780457]
[1770111758607,3.45885749,103.26,103.2,3.56780457]
[1770111760703,12.18215749,103.26,103.2,3.56780457]
[1770111761105,3.45885749,103.25,103.2,3.56780457]
[1770111761310,3.45885749,103.24,103.18,3.56780457]
[1770111761799,12.18375749,103.24,103.18,3.56780457]
[1770111762304,3.45885749,103.23,103.18,3.56780457]
[1770111762504,8.7249,103.24,103.18,3.56780457]
[1770111762704,12.18375749,103.24,103.18,3.56780457]
[1770111763301,3.45885749,103.23,103.18,3.56780457]
[1770111765105,12.18465749,103.23,103.18,3.56780457]
[1770111765302,3.45885749,103.22,103.16,8.7316]
[1770111765502,3.45885749,103.22,103.16,12.29940457]
[1770111765705,3.45885749,103.22,103.16,3.56780457]
[1770111767307,12.18545749,103.22,103.16,3.56780457]
[1770111767503,8.7266,103.22,103.16,3.56780457]
[1770111767708,3.45885749,103.21,103.16,3.56780457]
[1770111770811,12.18625749,103.21,103.15,12.26329663]
[1770111774512,14.59117971,103.21,103.15,12.26329663]
[1770111774712,3.58150661,103.24,103.17,12.38191387]
[1770111774907,2.40492222,103.23,103.17,12.38191387]
[1770111775108,5.98642883,103.23,103.17,12.38191387]
[1770111776107,3.58150661,103.22,103.17,3.65141387]
[1770111776419,2.40492222,103.21,103.17,3.65141387]
[1770111776812,3.58150661,103.2,103.15,8.7325]
[1770111777012,3.58150661,103.2,103.15,12.38391387]
[1770111777315,2.40492222,103.21,103.15,12.38391387]
[1770111777712,5.98642883,103.21,103.15,12.38391387]
[1770111778314,5.98642883,103.21,103.16,12.38281387]
[1770111778613,3.58150661,103.21,103.16,12.38281387]
[1770111780518,12.30750661,103.23,103.16,12.38281387]
[1770111780719,3.58150661,103.23,103.18,3.65141387]
[1770111782921,3.58150661,103.23,103.18,12.38121387]
[1770111783617,12.30570661,103.25,103.19,12.38031387]
[1770111785420,142.12320834,103.27,103.21,3.65141387]
[1770111785421,3.58150661,103.27,103.21,3.65141387]
[1770111786029,3.58150661,103.32,103.24,3.65141387]
[1770111786530,3.58150661,103.32,103.26,8.7227]
[1770111786920,3.58150661,103.32,103.25,139.35941387]
[1770111787923,3.58150661,103.32,103.25,139.35921387]
[1770111789325,3.58150661,103.32,103.27,8.7223]
[1770111792130,3.58150661,103.32,103.28,8.7214]
[1770111793825,3.58150661,103.32,103.27,12.37371387]
[1770111795930,12.29830661,103.34,103.28,12.37281387]
[1770111796828,3.58150661,103.34,103.29,12.37201387]
[1770111797235,3.58150661,103.36,103.3,3.65141387]
[1770111798433,5.97949053,103.36,103.3,12.37111387]
[1770111798631,3.58150661,103.35,103.3,3.65141387]
[1770111798827,2.39798392,103.34,103.28,3.65141387]
[1770111799734,5.97949053,103.34,103.28,3.65141387]
[1770111800333,3.58150661,103.34,103.28,12.37211387]
[1770111800731,3.66564089,103.36,103.29,3.62951291]
[1770111801332,3.66564089,103.35,103.29,3.62951291]
[1770111802030,3.66564089,103.35,103.29,12.35011291]
[1770111802335,3.66564089,103.35,103.3,3.62951291]
[1770111804837,3.66564089,103.35,103.3,12.34931291]
[1770111806638,3.66564089,103.35,103.3,8.7198]
[1770111810333,3.66564089,103.35,103.3,12.34931291]
[1770111810538,3.66564089,103.35,103.31,8.7189]
[1770111810737,3.66564089,103.35,103.3,3.62951291]
[1770111812437,3.66564089,103.35,103.3,12.34861291]
[1770111813136,12.38134089,103.35,103.3,12.34861291]
[1770111818643,12.38134089,103.35,103.3,3.62951291]
[1770111818644,3.66564089,103.34,103.3,3.62951291]
[1770111818948,12.38214089,103.34,103.29,12.35001291]
[1770111820136,3.66564089,103.33,103.27,3.62951291]
[1770111820343,2.40010026,103.31,103.27,3.62951291]
[1770111821345,11.11910026,103.31,103.27,3.62951291]
[1770111821534,2.40010026,103.31,103.27,3.62951291]
[1770111826446,14.78474115,103.31,103.25,12.35341291]
[1770111826640,14.78474115,103.31,103.25,3.62951291]
[1770111831455,14.78474115,103.31,103.25,12.35341291]
[1770111837656,3.66564089,103.31,103.26,12.1754327]
[1770111837862,6.06574115,103.31,103.26,12.1754327]
[1770111838665,3.69282804,103.3,103.26,8.7229]
[1770111839565,3.69282804,103.3,103.26,12.1754327]
[1770111840465,3.69282804,103.3,103.27,8.7223]
[1770111840971,3.69282804,103.3,103.26,3.4525327]
[1770111841362,3.69282804,103.3,103.26,12.1755327]
[1770111841561,3.69282804,103.3,103.26,3.4525327]
[1770111841764,2.40010026,103.29,103.24,3.4525327]
[1770111842966,2.40010026,103.29,103.21,135.7544]
[1770111842967,2.40010026,103.27,103.21,3.4525327]
[1770111844357,2.40010026,103.27,103.23,12.1782327]
[1770111847670,306.99282804,103.31,103.24,3.4525327]
[1770111847865,6.0929283,103.3,103.25,3.4525327]
[1770111848461,3.69282804,103.29,103.25,3.4525327]
[1770111848866,6.0929283,103.29,103.25,3.4525327]
[1770111850164,6.0929283,103.29,103.24,12.1773327]
[1770111850360,14.8137283,103.29,103.24,3.4525327]
[1770111850569,6.0929283,103.29,103.24,3.4525327]
[1770111850762,6.0929283,103.29,103.24,12.1772327]
[1770111855471,3.69282804,103.28,103.23,3.4525327]
[1770111859274,3.69282804,103.28,103.23,12.1782327]
[1770111859675,3.69282804,103.24,103.19,3.4525327]
[1770111859877,2.40010026,103.23,103.19,3.4525327]
[1770111861174,6.0929283,103.24,103.19,12.1813327]
[1770111861378,2.40010026,103.25,103.2,3.51095967]
[1770111861572,3.65254952,103.26,103.2,3.51095967]
[1770111862280,3.65254952,103.26,103.21,3.51095967]
[1770111862478,2.40010026,103.27,103.21,3.51095967]
[1770111862679,3.65254952,103.28,103.22,3.51095967]
[1770111863273,3.65254952,103.28,103.22,12.23685967]
[1770111863582,3.65254952,103.28,103.23,3.51095967]
[1770111867583,12.37414952,103.28,103.23,3.51095967]
[1770111868584,3.65254952,103.28,103.23,12.23665967]
[1770111873286,12.37254952,103.3,103.25,3.51095967]
[1770111873991,3.65254952,103.3,103.25,12.23495967]
[1770111875395,3.65254952,103.29,103.24,8.7248]
[1770111875595,6.0528076,103.29,103.24,8.7248]
[1770111875790,6.0528076,103.29,103.24,12.23575967]
[1770111878095,3.65254952,103.28,103.23,12.23665967]
[1770111879491,3.65254952,103.25,103.19,33.6669685]
[1770111879696,2.40025808,103.23,103.19,3.51095967]
[1770111886000,2.40025808,103.23,103.19,12.23975967]
[1770111893791,2.40025808,103.23,103.19,3.51095967]
[1770111900910,5.81527756,103.23,103.19,3.51095967]
[1770111901911,3.41501948,103.27,103.2,3.5343719]
[1770111902112,3.41501948,103.27,103.22,3.5343719]
[1770111902307,2.40025808,103.28,103.22,3.5343719]
[1770111902513,3.41501948,103.29,103.24,3.5343719]
[1770111904716,12.13591948,103.29,103.24,3.5343719]
[1770111907713,5.81527756,103.28,103.24,3.5343719]
[1770111908612,3.41501948,103.27,103.22,3.5343719]
[1770111909213,3.41501948,103.25,103.2,3.5343719]
[1770111909714,12.13911948,103.25,103.2,3.5343719]
[1770111909914,2.40025808,103.24,103.2,3.5343719]
[1770111911107,5.81527756,103.24,103.2,3.5343719]
[1770111911314,3.41501948,103.23,103.18,3.5343719]
[1770111911914,3.41501948,103.23,103.18,12.2643719]
[1770111912514,3.41501948,103.23,103.18,3.5343719]
[1770111912717,11.12535808,103.24,103.18,3.5343719]
[1770111913117,11.12535808,103.24,103.19,3.5343719]
[1770111913416,300.59527756,103.27,103.19,5.93462998]
[1770111913616,300.59527756,103.27,103.2,3.5343719]
[1770111914319,5.81527756,103.27,103.2,3.5343719]
[1770111915420,14.53837756,103.27,103.21,3.5343719]
[1770111915818,3.41501948,103.26,103.21,3.5343719]
[1770111916216,5.81527756,103.25,103.19,8.7291]
[1770111916419,5.81527756,103.25,103.19,12.2634719]
[1770111916819,5.81527756,103.23,103.17,12.2650719]
[1770111917020,3.41501948,103.22,103.17,3.5343719]
[1770111917214,2.40025808,103.21,103.17,3.5343719]
[1770111917936,5.81527756,103.21,103.16,3.5343719]
[1770111918823,3.41501948,103.21,103.16,3.5343719]
[1770111919024,5.81527756,103.21,103.16,3.5343719]
[1770111920521,14.72962294,103.23,103.17,3.45316546]
[1770111920827,3.60346486,103.23,103.17,3.45316546]
[1770111921023,3.60346486,103.23,103.18,3.45316546]
[1770111922227,2.40025808,103.24,103.19,3.45316546]
[1770111923316,6.00372294,103.24,103.19,3.45316546]
[1770111923513,14.72862294,103.24,103.19,3.45316546]
[1770111923821,6.00372294,103.24,103.19,3.45316546]
[1770111924622,3.60346486,103.23,103.17,14.58422354]
[1770111924823,2.40025808,103.22,103.17,12.18396546]
[1770111926226,6.00372294,103.22,103.17,3.45316546]
[1770111928226,14.73042294,103.22,103.15,12.18556546]
[1770111928926,14.73042294,103.22,103.16,3.45316546]
[1770111933129,3.60346486,103.21,103.16,3.45316546]
[1770111933628,3.60346486,103.21,103.16,12.18466546]
[1770111935929,135.6969,103.26,103.16,12.18466546]
[1770111935930,6.00799692,103.23,103.18,3.45316546]
[1770111936530,6.00799692,103.23,103.18,12.18226546]
[1770111937930,3.60346486,103.22,103.18,8.7291]
[1770111939325,2.40453206,103.21,103.17,12.18386546]
[1770111939526,2.40453206,103.21,103.14,492.91583206]
[1770111939733,6.00799692,103.21,103.15,12.18506546]
[1770111940134,6.00799692,103.21,103.16,3.45316546]
[1770111943828,3.60346486,103.2,103.15,8.7319]
[1770111944232,3.60346486,103.2,103.15,12.18506546]
[1770111945136,6.00799692,103.19,103.13,12.18666546]
[1770111945737,6.00799692,103.19,103.14,8.7331]
[1770111945936,6.00799692,103.19,103.14,12.18626546]
[1770111947233,6.00799692,103.19,103.15,8.7323]
[1770111947431,2.40453206,103.19,103.15,12.18546546]